bitfinex/quotes_SOLUSD_20230105
["timestamp","ask_amount","ask_price","bid_price","bid_amount"]
[1672940088385,17.0,13.163,13.156,47.17385373]
[1672940088816,17.0,13.163,13.156,92.93370043]
[1672940089257,17.0,13.163,13.157,47.17385373]
[1672940090081,17.0,13.163,13.151,57.07]
[1672940090402,19.72,13.16,13.153,47.17385373]
[1672940090613,17.0,13.159,13.153,47.17385373]
[1672940092280,17.0,13.159,13.148,112.0858]
[1672940092506,17.0,13.159,13.15,20.0]
[1672940095896,17.0,13.159,13.15,42.04572996]
[1672940096090,17.0,13.159,13.152,20.0]
[1672940097874,17.0,13.159,13.15,57.08]
[1672940098076,17.0,13.159,13.15,20.0]
[1672940099556,17.0,13.159,13.149,57.08]
[1672940100712,17.0,13.159,13.15,20.0]
[1672940103098,17.0,13.159,13.149,77.08]
[1672940103330,17.0,13.159,13.149,57.08]
[1672940104158,17.0,13.159,13.15,20.0]
[1672940105090,17.0,13.159,13.15,42.04572996]
[1672940105420,19.72,13.16,13.15,42.04572996]
[1672940107193,17.0,13.159,13.15,42.04572996]
[1672940108983,17.0,13.16,13.15,42.04572996]
[1672940109732,57.02,13.163,13.15,42.04572996]
[1672940110042,20.0,13.164,13.152,20.0]
[1672940110260,20.0,13.165,13.152,20.0]
[1672940110464,57.01,13.164,13.152,42.04572996]
[1672940110671,20.0,13.163,13.152,42.04572996]
[1672940110999,17.0,13.162,13.152,42.04572996]
[1672940112463,20.0,13.163,13.152,42.04572996]
[1672940112683,20.0,13.164,13.152,42.04572996]
[1672940112990,20.0,13.164,13.154,20.0]
[1672940113726,20.0,13.165,13.154,20.0]
[1672940113938,17.0,13.164,13.154,20.0]
[1672940114135,20.0,13.163,13.154,20.0]
[1672940114345,17.0,13.162,13.154,20.0]
[1672940114988,17.0,13.162,13.152,99.11572996]
[1672940117414,20.0,13.163,13.154,20.0]
[1672940117727,57.01,13.165,13.155,22.04572996]
[1672940117728,20.0,13.164,13.155,22.04572996]
[1672940118041,20.0,13.164,13.154,20.0]
[1672940118251,20.0,13.165,13.154,20.0]
[1672940118987,17.0,13.164,13.154,20.0]
[1672940119198,20.0,13.163,13.154,20.0]
[1672940122663,20.0,13.163,13.156,20.0]
[1672940122875,20.0,13.165,13.156,20.0]
[1672940123922,57.01,13.166,13.156,20.0]
[1672940124118,86.39,13.174,13.157,96.08572996]
[1672940124119,56.99,13.169,13.157,96.08572996]
[1672940124331,56.98,13.171,13.158,20.0]
[1672940124535,116.4807,13.172,13.159,74.04]
[1672940124751,116.4807,13.172,13.16,137.7579]
[1672940124951,116.4807,13.172,13.162,20.0]
[1672940125164,116.4807,13.172,13.161,57.03]
[1672940125370,116.4807,13.172,13.16,318.76405319]
[1672940125607,116.4807,13.172,13.162,20.0]
[1672940126012,116.4807,13.172,13.162,74.7565695]
[1672940126442,116.4807,13.172,13.164,20.0]
[1672940127075,116.4807,13.172,13.164,74.7565695]
[1672940127286,116.4807,13.172,13.164,54.7565695]
[1672940127496,20.0,13.177,13.165,20.0]
[1672940127711,76.96,13.176,13.164,109.38375657]
[1672940128025,20.0,13.175,13.166,115.62375657]
[1672940128243,20.0,13.173,13.166,115.62375657]
[1672940128637,20.0,13.173,13.161,20.0]
[1672940128859,26.29,13.17,13.162,60.9965695]
[1672940129070,17.0,13.169,13.162,60.9965695]
[1672940129282,17.0,13.169,13.162,115.62375657]
[1672940130345,17.0,13.169,13.16,117.7579]
[1672940131498,17.0,13.169,13.158,57.04]
[1672940131708,17.0,13.169,13.154,57.06]
[1672940131709,73.99,13.169,13.154,57.06]
[1672940131919,26.29,13.16,13.15,114.7694]
[1672940132151,26.29,13.16,13.151,57.07]
[1672940133282,57.01,13.165,13.151,57.07]
[1672940133512,37.0,13.164,13.151,57.07]
[1672940133933,26.29,13.16,13.151,57.07]
[1672940134463,17.0,13.159,13.151,57.07]
[1672940135521,17.0,13.159,13.15,114.7694]
[1672940142342,17.0,13.159,13.148,79.40729092]
[1672940142559,17.0,13.159,13.147,57.09]
[1672940142874,74.04,13.159,13.147,57.09]
[1672940144778,20.0,13.158,13.147,57.09]
[1672940144975,17.0,13.157,13.147,57.09]
[1672940146456,17.0,13.157,13.131,79.28704673]
[1672940146457,77.05,13.156,13.143,57.11]
[1672940146661,77.05,13.156,13.14,166.2621]
[1672940146662,26.29,13.15,13.14,166.2621]
[1672940146982,0.07678004,13.143,13.14,166.2621]
[1672940147188,0.07678004,13.143,13.14,109.1421]
[1672940160050,46.29,13.15,13.143,0.01285177]
[1672940160236,17.0,13.149,13.143,0.01285177]
[1672940160440,37.0,13.149,13.143,0.01285177]
[1672940161087,20.0,13.148,13.143,0.01285177]
[1672940161288,17.0,13.147,13.143,0.01285177]
[1672940162671,20.0,13.145,13.135,57.14]
[1672940162859,17.0,13.144,13.136,20.0]
[1672940163065,17.0,13.144,13.133,57.15]
[1672940163277,40.0,13.143,13.132,116.1045]
[1672940163509,17.0,13.142,13.132,116.1045]
[1672940165909,20.0,13.139,13.127,57.18]
[1672940166137,17.0,13.138,13.126,171.7772]
[1672940166544,17.0,13.138,13.127,22.32729092]
[1672940166756,17.0,13.138,13.128,57.17]
[1672940166967,17.0,13.139,13.129,20.0]
[1672940169621,17.0,13.139,13.128,79.49729092]
[1672940174970,17.0,13.139,13.129,20.0]
[1672940181706,17.0,13.139,13.128,57.17]
[1672940181917,17.0,13.139,13.127,116.6874407]
[1672940182223,57.13,13.138,13.125,117.2032]
[1672940182417,37.0,13.137,13.126,20.0]
[1672940182623,20.0,13.136,13.126,20.0]
[1672940182838,17.0,13.135,13.126,20.0]
[1672940186416,17.0,13.136,13.126,20.0]
[1672940189880,17.0,13.136,13.125,117.2032]
[1672940190117,19.78,13.13,13.122,57.2]
[1672940190433,17.0,13.129,13.122,20.0]
[1672940190831,17.0,13.129,13.121,57.2]
[1672940191042,17.0,13.129,13.122,20.0]
[1672940191262,17.0,13.129,13.121,57.2]
[1672940191676,17.0,13.129,13.12,89.0424365]
[1672940192092,17.0,13.129,13.12,111.36972742]
[1672940192948,17.0,13.129,13.12,91.36972742]
[1672940193775,17.0,13.129,13.121,20.0]
[1672940195052,17.0,13.129,13.12,91.36972742]
[1672940195561,17.0,13.129,13.12,34.15972742]
[1672940195978,17.0,13.129,13.12,11.8324365]
[1672940199691,19.78,13.13,13.12,11.8324365]
[1672940200200,57.17,13.129,13.12,11.8324365]
[1672940201035,17.0,13.128,13.12,11.8324365]
[1672940205246,19.78,13.13,13.12,11.8324365]
[1672940206405,17.0,13.129,13.12,11.8324365]
[1672940207673,74.17,13.129,13.12,11.8324365]
[1672940207884,17.0,13.129,13.12,11.8324365]
[1672940211032,57.16,13.131,13.121,59.32729092]
[1672940211258,57.13,13.138,13.122,96.7074407]
[1672940211440,19.97,13.14,13.123,37.0]
[1672940211441,57.12,13.139,13.123,37.0]
[1672940211651,57.12,13.139,13.124,77.19]
[1672940211857,57.12,13.139,13.125,37.0]
[1672940212188,57.12,13.139,13.127,20.0]
[1672940212719,57.12,13.139,13.128,22.32729092]
[1672940213038,57.12,13.139,13.129,20.0]
[1672940213221,17.0,13.138,13.129,20.0]
[1672940213867,57.12,13.139,13.129,20.0]
[1672940214702,114.8231,13.141,13.129,42.32729092]
[1672940214913,114.8231,13.141,13.131,20.0]
[1672940215126,114.8231,13.141,13.131,77.16]
[1672940215328,114.8231,13.141,13.131,99.48729092]
[1672940215954,17.0,13.14,13.131,99.48729092]
[1672940216168,17.0,13.14,13.131,20.0]
[1672940216602,17.0,13.14,13.13,20.0]
[1672940220301,114.8231,13.141,13.13,20.0]
[1672940221563,17.0,13.14,13.13,20.0]
[1672940225033,36.78,13.14,13.13,20.0]
[1672940226698,36.78,13.14,13.129,20.0]
[1672940227117,36.78,13.14,13.129,42.32729092]
[1672940231031,36.78,13.14,13.128,57.17]
[1672940231234,93.9,13.14,13.126,77.18]
[1672940235234,20.0,13.139,13.126,57.18]
[1672940235422,20.0,13.137,13.123,57.19]
[1672940235633,74.14,13.136,13.123,57.19]
[1672940236060,17.0,13.136,13.123,57.19]
[1672940236476,17.0,13.137,13.123,57.19]
[1672940238469,57.12,13.139,13.126,20.0]
[1672940238681,57.12,13.139,13.128,20.0]
[1672940239019,19.9,13.14,13.128,20.0]
[1672940239636,77.02,13.14,13.128,20.0]
[1672940239853,37.0,13.139,13.128,77.17]
[1672940240170,17.0,13.139,13.128,20.0]
[1672940241854,17.0,13.139,13.127,57.18]
[1672940243104,57.13,13.138,13.126,77.18]
[1672940243315,17.0,13.137,13.126,77.18]
[1672940243954,37.0,13.138,13.126,77.18]
[1672940244158,37.0,13.138,13.126,57.18]
[1672940244488,37.0,13.138,13.124,57.19]
[1672940244888,17.0,13.138,13.126,20.0]
[1672940245108,17.0,13.138,13.126,77.18]
[1672940247313,17.0,13.139,13.126,77.18]
[1672940247523,37.0,13.139,13.126,77.18]
[1672940248465,17.0,13.139,13.126,77.18]
[1672940248792,37.0,13.139,13.126,57.18]
[1672940248983,20.0,13.137,13.126,57.18]
[1672940249191,17.0,13.136,13.126,57.18]
[1672940249623,17.0,13.136,13.127,20.0]
[1672940250371,57.12,13.139,13.127,20.0]
[1672940250590,77.02,13.14,13.127,20.0]
[1672940251109,99.43737149,13.14,13.127,20.0]
[1672940251947,20.0,13.138,13.127,20.0]
[1672940252140,17.0,13.137,13.127,20.0]
[1672940252359,37.0,13.139,13.126,77.18]
[1672940253539,17.0,13.139,13.126,77.18]
[1672940254169,17.0,13.139,13.126,57.18]
[1672940254366,37.0,13.139,13.126,57.18]
[1672940254579,17.0,13.139,13.128,20.0]
[1672940256257,17.0,13.139,13.127,59.5074407]
[1672940258060,17.0,13.139,13.127,39.5074407]
[1672940261294,57.13,13.138,13.127,39.5074407]
[1672940261508,17.0,13.137,13.127,39.5074407]
[1672940262144,17.0,13.137,13.125,305.5438]
[1672940262363,37.0,13.137,13.125,248.3638]
[1672940262679,57.14,13.136,13.125,248.3638]
[1672940262876,17.0,13.135,13.125,248.3638]
[1672940263406,17.0,13.136,13.125,248.3638]
[1672940264882,37.0,13.137,13.125,248.3638]
[1672940265214,17.0,13.137,13.125,248.3638]
[1672940265955,59.41737149,13.137,13.125,135.8649]
[1672940266264,39.41737149,13.137,13.125,135.8649]
[1672940266472,57.14,13.136,13.125,135.8649]
[1672940266791,17.0,13.135,13.123,57.19]
[1672940266988,20.0,13.133,13.121,115.0911]
[1672940267195,74.15,13.132,13.121,115.0911]
[1672940267846,19.64,13.13,13.121,115.0911]
[1672940268040,17.0,13.129,13.121,115.0911]
[1672940270686,17.0,13.129,13.122,20.0]
[1672940270995,17.0,13.129,13.121,115.0911]
[1672940271622,17.0,13.129,13.12,11.8324365]
[1672940272341,17.0,13.129,13.12,31.8324365]
[1672940274448,17.0,13.129,13.12,11.8324365]
[1672940283702,74.17,13.129,13.12,11.8324365]
[1672940283907,17.0,13.129,13.12,11.8324365]
[1672940284656,20.0,13.127,13.12,11.8324365]
[1672940284854,20.0,13.125,13.12,11.8324365]
[1672940285065,77.19,13.124,13.12,11.8324365]
[1672940285281,17.0,13.123,13.12,11.8324365]
[1672940285480,20.0,13.122,13.12,11.8324365]
[1672940285693,17.0,13.121,13.12,11.8324365]
[1672940287802,39.41737149,13.121,13.12,11.8324365]
[1672940288012,17.0,13.121,13.12,11.8324365]
[1672940288737,112.3003,13.129,13.12,11.8324365]
[1672940288952,112.3003,13.129,13.12,125.57127506]
[1672940291490,20.0,13.127,13.12,125.57127506]
[1672940291698,17.0,13.126,13.12,125.57127506]
[1672940292126,17.0,13.127,13.12,125.57127506]
[1672940292317,17.0,13.128,13.12,125.57127506]
[1672940293068,57.16,13.131,13.12,125.57127506]
[1672940293069,57.13,13.137,13.122,20.0]
[1672940293265,57.13,13.138,13.123,77.19]
[1672940293472,77.12,13.139,13.124,20.0]
[1672940293805,19.78,13.13,13.121,172.9989]
[1672940294226,19.78,13.13,13.121,115.7989]
[1672940294540,19.78,13.13,13.121,162.41646813]
[1672940294754,17.0,13.129,13.121,162.41646813]
[1672940294967,17.0,13.129,13.121,46.61756813]
[1672940298011,19.78,13.13,13.122,45.71784937]
[1672940298414,19.78,13.13,13.123,50.0842348]
[1672940299370,17.0,13.129,13.123,50.0842348]
[1672940300937,17.0,13.129,13.12,11.8324365]
[1672940301160,37.0,13.129,13.12,11.8324365]
[1672940301358,17.0,13.129,13.12,11.8324365]
[1672940302214,57.17,13.128,13.12,11.8324365]
[1672940302430,17.0,13.127,13.12,11.8324365]
[1672940302833,37.0,13.127,13.12,11.8324365]
[1672940303467,116.59737149,13.127,13.12,11.8324365]
[1672940303793,20.0,13.126,13.12,11.8324365]
[1672940303994,17.0,13.125,13.12,11.8324365]
[1672940306945,20.0,13.124,13.12,11.8324365]
[1672940307264,37.0,13.123,13.12,11.8324365]
[1672940309877,17.0,13.123,13.12,11.8324365]
[1672940311660,20.0,13.122,13.12,11.8324365]
[1672940314289,42.41737149,13.122,13.12,11.8324365]
[1672940314512,17.0,13.121,13.12,11.8324365]
[1672940320089,17.0,13.121,13.12,0.8324365]
[1672940320915,17.0,13.121,13.12,0.0024365]
[1672940321118,74.2,13.121,13.12,0.0024365]
[1672940321327,79.61737149,13.121,13.12,0.0024365]
[1672940322585,96.61737149,13.121,13.12,0.0024365]
[1672940324918,17.0,13.121,13.12,0.0024365]
[1672940326072,20.0,13.12,13.111,119.3424]
[1672940328368,20.0,13.118,13.111,119.3424]
[1672940328580,17.0,13.117,13.111,119.3424]
[1672940329014,79.61737149,13.121,13.111,119.3424]
[1672940329848,22.41737149,13.121,13.111,119.3424]
[1672940330268,17.0,13.12,13.111,119.3424]
[1672940331326,77.2,13.122,13.111,119.3424]
[1672940331540,20.0,13.122,13.111,119.3424]
[1672940331754,77.19,13.123,13.111,119.3424]
[1672940331953,57.19,13.123,13.111,119.3424]
[1672940332163,57.19,13.123,13.112,20.0]
[1672940332572,57.19,13.123,13.111,176.5924]
[1672940333730,57.19,13.123,13.112,20.0]
[1672940333941,17.0,13.122,13.113,57.24]
[1672940334152,17.0,13.122,13.111,176.5924]
[1672940334694,57.19,13.123,13.112,20.0]
[1672940335340,20.0,13.124,13.112,20.0]
[1672940336054,17.0,13.123,13.111,176.5924]
[1672940336262,96.60737149,13.123,13.111,176.5924]
[1672940336474,74.19,13.123,13.111,176.5924]
[1672940336691,20.0,13.121,13.111,176.5924]
[1672940336911,17.0,13.12,13.111,176.5924]
[1672940338062,37.0,13.121,13.111,176.5924]
[1672940338476,17.0,13.121,13.111,176.5924]
[1672940339015,17.0,13.121,13.112,20.0]
[1672940339409,77.19,13.124,13.112,20.0]
[1672940339619,20.0,13.124,13.112,20.0]
[1672940340049,20.0,13.123,13.112,20.0]
[1672940340886,17.0,13.122,13.111,176.5924]
[1672940341102,74.2,13.122,13.111,176.5924]
[1672940341430,17.0,13.122,13.111,176.5924]
[1672940342467,99.60737149,13.123,13.112,20.0]
[1672940342668,42.41737149,13.123,13.112,20.0]
[1672940343822,17.0,13.122,13.112,20.0]
[1672940344257,80.6903,13.132,13.112,20.0]
[1672940344576,22.41737149,13.129,13.114,20.0]
[1672940344796,20.0,13.128,13.113,169.0092]
[1672940345105,20.0,13.126,13.113,169.0092]
[1672940345306,57.18,13.125,13.113,169.0092]
[1672940345518,20.0,13.124,13.113,169.0092]
[1672940345729,17.0,13.123,13.113,169.0092]
[1672940346461,22.41737149,13.123,13.113,169.0092]
[1672940346668,20.0,13.121,13.113,111.7692]
[1672940346881,17.0,13.12,13.113,111.7692]
[1672940350045,17.0,13.121,13.113,111.7692]
[1672940350680,17.0,13.122,13.113,111.7692]
[1672940351202,74.2,13.122,13.113,111.7692]
[1672940360770,17.0,13.122,13.113,111.7692]
[1672940361194,74.2,13.122,13.113,111.7692]
[1672940362130,17.0,13.122,13.113,111.7692]
[1672940364747,17.0,13.123,13.113,111.7692]
[1672940364964,57.19,13.124,13.114,20.0]
[1672940365175,57.17,13.129,13.115,57.23]
[1672940365926,79.58737149,13.129,13.115,57.23]
[1672940367911,57.17,13.129,13.117,20.0]
[1672940368652,57.17,13.129,13.118,117.2969]
[1672940368845,57.17,13.129,13.119,20.0]
[1672940369922,17.0,13.128,13.119,20.0]
[1672940370116,57.18,13.127,13.119,20.0]
[1672940370426,17.0,13.126,13.119,20.0]
[1672940370839,17.0,13.126,13.118,117.2969]
[1672940372435,17.0,13.126,13.119,20.0]
[1672940373182,17.0,13.128,13.119,20.0]
[1672940373373,57.17,13.129,13.119,20.0]
[1672940373576,19.75,13.13,13.119,20.0]
[1672940374331,79.55737149,13.134,13.119,20.0]
[1672940374550,40.0,13.133,13.119,77.21]
[1672940374729,57.15,13.132,13.119,77.21]
[1672940375998,17.0,13.131,13.119,77.21]
[1672940376212,57.15,13.132,13.119,77.21]
[1672940379991,17.0,13.131,13.119,77.21]
[1672940382326,39.41737149,13.131,13.119,77.21]
[1672940382527,39.41737149,13.131,13.119,20.0]
[1672940382741,39.41737149,13.131,13.119,77.21]
[1672940385999,39.41737149,13.131,13.119,57.21]
[1672940386000,20.0,13.129,13.119,57.21]
[1672940386203,77.17,13.129,13.119,57.21]
[1672940386517,17.0,13.128,13.119,57.21]
[1672940386727,17.0,13.128,13.118,234.4824]
[1672940387275,17.0,13.129,13.118,234.4824]
[1672940388200,17.0,13.129,13.119,77.21]
[1672940390637,17.0,13.129,13.119,57.21]
[1672940391034,17.0,13.129,13.118,234.4824]
[1672940391476,17.0,13.129,13.12,20.0]
[1672940391880,17.0,13.129,13.119,20.0]
[1672940392301,17.0,13.129,13.118,234.4824]
[1672940392739,17.0,13.129,13.119,20.0]
[1672940392951,17.0,13.129,13.119,77.21]
[1672940395978,17.0,13.129,13.119,57.21]
[1672940396214,39.41737149,13.129,13.118,117.2969]
[1672940396399,77.17,13.128,13.118,117.2969]
[1672940396610,17.0,13.127,13.118,117.2969]
[1672940399230,17.0,13.128,13.118,117.2969]
[1672940399458,57.18,13.127,13.118,117.2969]
[1672940399797,17.0,13.126,13.118,117.2969]
[1672940400419,17.0,13.127,13.118,117.2969]
[1672940400843,20.0,13.126,13.116,11.9110457]
[1672940401156,20.0,13.124,13.116,11.9110457]
[1672940401370,20.0,13.123,13.116,11.9110457]
[1672940401688,37.0,13.123,13.116,11.9110457]
[1672940402612,59.41737149,13.123,13.116,11.9110457]
[1672940403241,37.0,13.123,13.116,11.9110457]
[1672940404498,20.0,13.123,13.116,11.9110457]
[1672940404710,40.0,13.124,13.116,11.9110457]
[1672940404920,57.19,13.123,13.116,11.9110457]
[1672940405990,37.0,13.122,13.116,11.9110457]
[1672940406183,17.0,13.122,13.116,11.9110457]
[1672940408175,74.19,13.123,13.116,11.9110457]
[1672940410702,96.60737149,13.123,13.116,11.9110457]
[1672940411130,20.0,13.122,13.116,11.9110457]
[1672940411352,20.0,13.12,13.116,11.9110457]
[1672940411543,20.0,13.118,13.116,8.4979457]
[1672940411755,20.0,13.118,13.11,60.5563422]
[1672940411988,17.0,13.117,13.11,60.5563422]
[1672940413018,37.0,13.118,13.11,60.5563422]
[1672940413248,17.0,13.118,13.11,60.5563422]
[1672940413645,17.0,13.119,13.11,60.5563422]
[1672940419432,19.71,13.12,13.11,60.5563422]
[1672940419970,39.71,13.12,13.11,60.5563422]
[1672940421232,20.0,13.118,13.11,60.5563422]
[1672940422264,37.0,13.119,13.11,60.5563422]
[1672940422695,17.0,13.119,13.11,60.5563422]
[1672940425841,20.0,13.118,13.11,60.5563422]
[1672940426057,17.0,13.117,13.11,60.5563422]
[1672940426692,17.0,13.118,13.11,60.5563422]
[1672940426917,19.71,13.12,13.11,60.5563422]
[1672940427630,39.71,13.12,13.11,60.5563422]
[1672940427840,96.92,13.12,13.11,60.5563422]
[1672940428062,17.0,13.119,13.11,60.5563422]
[1672940452457,19.71,13.12,13.11,60.5563422]
[1672940454065,17.0,13.119,13.11,60.5563422]
[1672940461092,57.2,13.122,13.111,57.25]
[1672940461419,77.19,13.124,13.112,20.0]
[1672940462785,19.84,13.12,13.112,20.0]
[1672940463007,17.0,13.119,13.112,20.0]
[1672940463310,19.84,13.12,13.112,20.0]
[1672940465715,17.0,13.119,13.112,20.0]
[1672940468862,17.0,13.119,13.112,41.71151261]
[1672940470672,77.19,13.124,13.112,21.71151261]
[1672940470858,37.0,13.123,13.112,21.71151261]
[1672940471068,17.0,13.123,13.112,21.71151261]
[1672940471318,17.0,13.123,13.113,20.0]
[1672940472125,17.0,13.123,13.111,57.25]
[1672940472336,37.0,13.123,13.111,57.25]
[1672940472863,17.0,13.123,13.112,20.0]
[1672940474344,17.0,13.123,13.111,77.25]
[1672940475113,17.0,13.123,13.111,57.25]
[1672940476347,17.0,13.123,13.112,20.0]
[1672940478659,19.84,13.12,13.112,20.0]
[1672940478866,17.0,13.119,13.112,20.0]
[1672940480460,17.0,13.119,13.111,77.25]
[1672940482790,117.2404,13.126,13.112,41.71151261]
[1672940482967,117.2404,13.126,13.114,20.0]
[1672940483178,117.2404,13.126,13.115,77.23]
[1672940483392,117.2404,13.126,13.116,20.0]
[1672940483695,117.2404,13.126,13.118,20.0]
[1672940484136,17.0,13.125,13.118,20.0]
[1672940484542,17.0,13.125,13.117,57.22]
[1672940485482,17.0,13.125,13.115,20.0]
[1672940485698,20.0,13.124,13.115,20.0]
[1672940485914,17.0,13.123,13.113,20.0]
[1672940487191,77.18,13.125,13.113,20.0]
[1672940487192,37.0,13.124,13.113,20.0]
[1672940488124,17.0,13.124,13.113,20.0]
[1672940489167,17.0,13.124,13.114,77.23]
[1672940489380,17.0,13.125,13.115,20.0]
[1672940489916,174.4204,13.126,13.115,20.0]
[1672940490138,117.2404,13.126,13.116,20.0]
[1672940490666,117.2404,13.126,13.115,77.23]
[1672940491497,37.0,13.125,13.115,77.23]
[1672940491737,17.0,13.125,13.115,77.23]
[1672940494140,17.0,13.125,13.115,20.0]
[1672940496432,17.0,13.125,13.116,57.22]
[1672940497079,17.0,13.125,13.115,77.23]
[1672940497289,17.0,13.125,13.116,20.0]
[1672940497499,57.17,13.129,13.117,20.0]
[1672940497716,57.17,13.129,13.117,77.22]
[1672940498337,57.17,13.129,13.118,110.7171]
[1672940498547,57.17,13.129,13.119,20.0]
[1672940499281,57.17,13.129,13.118,110.7171]
[1672940499820,57.15,13.133,13.119,20.0]
[1672940500030,58.37891615,13.134,13.119,20.0]
[1672940500031,57.15,13.134,13.12,39.83]
[1672940500242,57.13,13.137,13.121,94.2]
[1672940500452,57.13,13.137,13.123,20.0]
[1672940500640,57.13,13.137,13.124,77.19]
[1672940500856,57.13,13.137,13.125,20.0]
[1672940501182,174.3054,13.138,13.127,20.0]
[1672940501685,117.1754,13.138,13.128,57.17]
[1672940502635,20.0,13.137,13.127,57.18]
[1672940503177,17.0,13.136,13.127,57.18]
[1672940504212,37.0,13.137,13.127,57.18]
[1672940505077,17.0,13.137,13.127,57.18]
[1672940505282,17.0,13.137,13.126,77.18]
[1672940505489,117.1754,13.138,13.126,77.18]
[1672940505810,117.1754,13.138,13.127,20.0]
[1672940506536,117.1754,13.138,13.129,20.0]
[1672940507068,117.1754,13.138,13.128,57.17]
[1672940507603,117.1754,13.138,13.127,77.18]
[1672940507790,17.0,13.137,13.127,57.18]
[1672940511795,117.1754,13.138,13.127,57.18]
[1672940512195,19.71,13.14,13.127,57.18]
[1672940512412,19.71,13.14,13.128,20.0]
[1672940512841,57.12,13.139,13.128,20.0]
[1672940513252,19.71,13.14,13.128,20.0]
[1672940513673,17.0,13.139,13.128,20.0]
[1672940514304,17.0,13.139,13.13,20.0]
[1672940514952,19.71,13.14,13.13,20.0]
[1672940515478,57.11,13.142,13.13,20.0]
[1672940516981,57.11,13.142,13.13,39.83]
[1672940517469,57.11,13.142,13.13,145.21151414]
[1672940517913,57.11,13.142,13.13,125.21151414]
[1672940518314,17.0,13.141,13.13,125.21151414]
[1672940518533,57.12,13.14,13.13,105.38151414]
[1672940518857,17.0,13.139,13.13,52.8927001]
[1672940519272,17.0,13.14,13.13,52.8927001]
[1672940519484,20.0,13.139,13.13,52.8927001]
[1672940519698,17.0,13.138,13.126,20.0]
[1672940520096,17.0,13.138,13.128,20.0]
[1672940520858,17.0,13.138,13.127,57.18]
[1672940525379,37.0,13.138,13.127,57.18]
[1672940525986,17.0,13.138,13.127,57.18]
[1672940526847,57.12,13.139,13.127,57.18]
[1672940527049,19.7,13.14,13.127,57.18]
[1672940527989,17.0,13.139,13.127,57.18]
[1672940529046,17.0,13.139,13.128,20.0]
[1672940529259,17.0,13.139,13.13,20.0]
[1672940529467,17.0,13.139,13.129,57.17]
[1672940530088,17.0,13.139,13.129,20.0]
[1672940530304,17.0,13.139,13.128,57.17]
[1672940531246,17.0,13.139,13.128,20.0]
[1672940531455,74.12,13.139,13.129,57.17]
[1672940531676,74.12,13.139,13.128,57.17]
[1672940531886,17.0,13.139,13.128,57.17]